[Event "GCT Superbet Romania 2024"]
[Site "Bucharest"]
[Date "2024.07.04"]
[Round "8.1"]
[White "Vachier-Lagrave, Maxime"]
[Black "So, Wesley"]
[Result "1/2-1/2"]
[ECO "C54"]
[WhiteElo "2732"]
[BlackElo "2757"]
[Annotator "TA"]
[PlyCount "106"]
[EventDate "2024.06.24"]
[EventType "tourn"]
[EventCountry "ROU"]
[SourceTitle "playchess.com"]
[Source "ChessBase"]
[SourceQuality "1"]
[TimeControl "7200+30"]

{[%evp 10,106,19,7,32,12,12,8,8,11,9,0,19,0,0,0,0,0,0,0,0,0,0,-10,22,17,26,27,10,12,17,15,24,17,22,0,0,1,4,5,22,31,25,28,24,32,35,27,31,25,33,4,4,4,29,29,29,29,30,29,30,8,11,11,8,8,8,10,10,10,10,5,5,5,23,5,5,5,5,5,5,7,14,0,14,0,14,0,14,14,14,0,0,0,0,0,0,0,0]} 1. e4 {[%emt 0:00:03]} e5 {[%emt 0:00:07]} 2. Nf3 {[%emt 0:00:02]} Nc6 {[%emt 0:00:06]} 3. Bc4 {[%emt 0:00:03]} Bc5 {[%emt 0:00:10]} 4. c3 {[%emt 0:00:03]} Nf6 {[%emt 0:00:06]} 5. d3 {[%emt 0:00:02]} d6 {[%emt 0:00:06]} 6. O-O {[%emt 0:00:08]} a5 {[%emt 0:00:25]} 7. Nbd2 {[%emt 0:00:36]} O-O {[%emt 0:00:10]} 8. h3 {[%emt 0:00:10]} h6 {[%emt 0:00:19]} 9. Re1 {[%emt 0:01:03]} a4 {[%emt 0:00:09]} 10. Nf1 {[%emt 0:03:15]} Bd7 {[%emt 0:00:07]} 11. d4 {[%emt 0:07:19]} Bb6 {[%emt 0:00:28]} 12. Ng3 {[%emt 0:02:15]} Re8 {[%emt 0:00:15]} 13. Be3 {[%emt 0:05:29]} exd4 {[%emt 0:01:27]} 14. Nxd4 {[%emt 0:00:47]} Ne5 {[%emt 0:10:49]} 15. Bf1 {[%emt 0:03:39]} Ng6 {[%emt 0:00:17]} 16. Nf3 {[%emt 0:09:07]} Nxe4 {[%emt 0:26:42]} 17. Nxe4 {[%emt 0:00:11]} Rxe4 {[%emt 0:00:04]} 18. Bxb6 {[%emt 0:00:10]} Rxe1 {[%emt 0:00:05]} 19. Nxe1 {[%emt 0:00:07]} cxb6 {[%emt 0:00:03]} 20. Qxd6 {[%emt 0:00:07] [#] Threatens to win with Rd1.} Bc6 {[%emt 0:00:17]} 21. Rd1 {[%emt 0:04:48]} Qg5 {[%emt 0:04:59][%cal Oa4a3]} 22. Qd2 {[%emt 0:06:49]} (22. Qg3 {simplifies} Qxg3 23. fxg3 a3 24. b3) 22... Nf4 {[%emt 0:11:05]} 23. g3 {[%emt 0:01:05]} Ne6 {[%emt 0:00:04][%cal Bf4e6,Be6g5,Bg5f3][%mdl 32]} 24. Qxg5 {[%emt 0:01:30]} Nxg5 {[%emt 0:06:27]} 25. h4 {[%emt 0:02:16]} Nf3+ {[%emt 0:00:07]} 26. Nxf3 {[%emt 0:00:05]} Bxf3 $11 {[%emt 0:00:04][%mdl 4096] Endgame. KRB-KRB} 27. Rd6 {[%emt 0:05:33]} Bc6 {[%emt 0:36:14]} 28. Bg2 {[%emt 0:00:38]} Rc8 {[%emt 0:00:21]} 29. a3 {[%emt 0:02:04]} Kf8 {[%emt 0:00:41]} 30. Kf1 {[%emt 0:06:09]} Ke7 {[%emt 0:02:46]} 31. Rd4 {[%emt 0:00:07]} b5 {[%emt 0:01:06]} 32. Bh3 {[%emt 0:01:51]} Rf8 {[%emt 0:05:31]} 33. Bf5 {[%emt 0:02:56]} Re8 {[%emt 0:01:31]} 34. Bd3 {[%emt 0:03:34]} Kf8 {[%emt 0:01:10]} 35. h5 {[%emt 0:01:49]} Re5 {[%emt 0:00:12]} 36. Be2 {[%emt 0:01:53]} Bg2+ {[%emt 0:01:36]} 37. Kxg2 {[%emt 0:00:12]} Rxe2 {[%emt 0:00:03] KR-KR} 38. Rb4 {[%emt 0:00:25]} Re5 {[%emt 0:00:03]} 39. g4 {[%emt 0:00:54]} Rc5 {[%emt 0:02:42]} 40. f3 {[%emt 0:03:55]} f5 {[%emt 0:02:52]} 41. Kg3 {[%emt 0:01:14]} Ke7 {[%emt 0:00:32]} 42. Rd4 {[%emt 0:01:55]} fxg4 {[%emt 0:01:28] The position is equal.} 43. fxg4 {[%emt 0:01:23]} Re5 {[%emt 0:00:43]} 44. Kf4 {[%emt 0:00:47]} Rg5 {[%emt 0:00:24]} 45. Rd1 {[%emt 0:02:28]} Rc5 {[%emt 0:00:26]} 46. Rd4 {[%emt 0:03:18]} Rg5 {[%emt 0:00:06]} 47. Rd1 {[%emt 0:03:30]} Rc5 {[%emt 0:00:04]} 48. Rd4 {[%emt 0:00:06]} Rg5 {[%emt 0:00:14]} 49. Re4+ {[%emt 0:00:12]} Kd7 {[%emt 0:00:01]} 50. Re5 {[%emt 0:00:02]} Rxe5 51. Kxe5 Ke7 $1 {[%emt 0:00:02]} 52. Kd5 {[%emt 0:00:02]} Kf6 {[%emt 0:00:02] [#] And now ...Kg5 would win.} 53. Kc5 {[%emt 0:00:01]} Kg5 {Weighted Error Value: White=0.06 (flawless) /Black=0.03 (flawless) .  Inaccurate:     	White=1     	Black=1      OK:         	White=16    	Black=32     Best:        	White=3     	---        Strong:       	---       	Black=1} 1/2-1/2

[Event "GCT Superbet Romania 2024"]
[Site "Bucharest"]
[Date "2024.07.04"]
[Round "8.2"]
[White "Firouzja, Alireza"]
[Black "Nepomniachtchi, Ian"]
[Result "1/2-1/2"]
[ECO "D02"]
[WhiteElo "2737"]
[BlackElo "2770"]
[Annotator "TA"]
[PlyCount "89"]
[EventDate "2024.06.24"]
[EventType "tourn"]
[EventCountry "ROU"]
[SourceTitle "playchess.com"]
[Source "ChessBase"]
[SourceQuality "1"]
[TimeControl "7200+30"]

{[%evp 11,89,17,19,23,34,14,19,23,20,18,18,15,32,16,16,0,0,0,8,0,3,0,26,14,28,33,20,0,0,0,0,0,0,-16,-20,-18,-29,-27,-28,-19,-27,-21,-18,-17,-11,-35,-10,-34,-25,-32,-39,-39,-6,-9,0,0,0,0,0,0,0,0,0,0,0,0,0,0,0,0,0,0,0,0,0,0,0,0,0,0]} 1. d4 {[%emt 0:00:04]} Nf6 {[%emt 0:00:06]} 2. Nf3 {[%emt 0:00:04]} d5 {[%emt 0:00:07]} 3. Bf4 {[%emt 0:00:06]} c5 {[%emt 0:00:05]} 4. e3 {[%emt 0:00:05]} Nc6 {[%emt 0:00:05]} 5. Nbd2 {[%emt 0:00:05]} Nh5 {[%emt 0:00:04]} 6. dxc5 {[%emt 0:00:08] D02: 1 d4 d5 2 Nf3 sidelines, including 2...Nf6 3 g3 and 2...Nf6 3 Bf4.} Nxf4 {[%emt 0:00:05]} 7. exf4 {[%emt 0:00:07]} a5 {[%emt 0:00:01]} 8. Bb5 {[%emt 0:00:08]} e6 {[%emt 0:00:54]} 9. Ne5 {[%emt 0:00:16]} Bd7 {[%emt 0:00:04]} 10. Nxd7 $146 {[%emt 0:00:05]} ({Predecessor:} 10. Nd3 Nb4 11. Bxd7+ Qxd7 12. Nxb4 axb4 13. Nb3 Be7 14. Qd2 Bf6 15. Nd4 O-O 16. O-O {½-½ Rios Gomez,C (2472)-Sahakyan,A (2334) Sharjah Challengers 7th 2024 (8)}) 10... Qxd7 {[%emt 0:00:04]} 11. Qf3 {[%emt 0:00:06]} Qc7 {[%emt 0:00:03]} 12. O-O-O {[%emt 0:18:01]} Be7 {[%emt 0:00:26]} 13. f5 {[%emt 0:06:21]} O-O {[%emt 0:00:22]} 14. Qg3 {[%emt 0:01:26]} Qxg3 {[%emt 0:13:36]} 15. fxg3 {[%emt 0:00:24]} Nd4 {[%emt 0:25:35]} 16. Bd3 {[%emt 0:02:13]} Bxc5 {[%emt 0:00:48]} 17. fxe6 {[%emt 0:15:27]} fxe6 {[%emt 0:00:34]} 18. Rhe1 {[%emt 0:04:55]} Rae8 {[%emt 0:01:45]} 19. g4 {[%emt 0:09:55]} Rf2 {[%emt 0:01:34]} 20. c3 {[%emt 0:03:17]} Nc6 {[%emt 0:00:10]} 21. Nf3 {[%emt 0:01:25]} g6 {[%emt 0:08:04]} 22. Ng5 {[%emt 0:08:46]} Bd6 {[%emt 0:12:28]} 23. Rxe6 {[%emt 0:33:32]} Rxe6 {[%emt 0:09:37]} 24. Nxe6 {[%emt 0:00:04]} Kf7 {[%emt 0:00:34]} 25. Ng5+ {[%emt 0:01:21]} Kf6 {[%emt 0:01:02]} 26. Nf3 $1 {[%emt 0:00:06]} (26. Nxh7+ $2 Kg7 27. h4 Rxg2 $19 (27... Kxh7 $2 28. h5 $19)) 26... Bf4+ {[%emt 0:00:46]} 27. Kb1 {[%emt 0:00:05]} Rxg2 {[%emt 0:00:06]} 28. Bb5 {[%emt 0:03:56]} Ne7 {[%emt 0:02:22]} 29. h3 {[%emt 0:02:17]} Rg3 {[%emt 0:02:51]} 30. Rf1 {[%emt 0:03:45]} g5 {[%emt 0:05:20]} (30... Rxh3 $2 {too greedy.} 31. Ng1 Rh1 32. Rxf4+ $18) 31. Nd4 {[%emt 0:01:57]} Ng6 {[%emt 0:08:28]} 32. Rh1 {[%emt 0:00:51]} Rg2 {[%emt 0:02:04]} 33. Nb3 {[%emt 0:03:28]} b6 {[%emt 0:01:53]} 34. Rd1 {[%emt 0:01:32]} Ne7 {[%emt 0:03:04]} 35. Nd4 {[%emt 0:00:57]} Be3 {[%emt 0:05:46]} 36. Nc6 {[%emt 0:00:58]} Rg1 {[%emt 0:00:20]} 37. Rxg1 {[%emt 0:00:06]} Bxg1 {[%emt 0:00:02]} 38. Nxe7 {[%emt 0:00:07]} Kxe7 {[%emt 0:00:03]} 39. Kc2 {[%emt 0:00:11]} Kd6 {[%emt 0:00:05]} 40. Kd3 {[%emt 0:00:20]} Ke5 {[%emt 0:00:04]} 41. Bc6 {[%emt 0:00:10]} Kd6 {[%emt 0:00:01]} 42. Bb5 {[%emt 0:00:04]} Ke5 {[%emt 0:00:03]} 43. Bc6 {[%emt 0:00:04]} Kd6 {[%emt 0:00:01]} 44. Bb5 {[%emt 0:00:04]} Ke5 {[%emt 0:00:07]} 45. Bc6 {[%emt 0:00:04]} 1/2-1/2

[Event "GCT Superbet Romania 2024"]
[Site "Bucharest"]
[Date "2024.07.04"]
[Round "8.5"]
[White "Abdusattorov, Nodirbek"]
[Black "Deac, Bogdan-Daniel"]
[Result "1/2-1/2"]
[ECO "C83"]
[WhiteElo "2766"]
[BlackElo "2680"]
[Annotator "TA"]
[PlyCount "167"]
[EventDate "2024.06.24"]
[EventType "tourn"]
[EventCountry "ROU"]
[SourceTitle "playchess.com"]
[Source "ChessBase"]
[SourceQuality "1"]
[TimeControl "7200+30"]

{[%evp 19,167,7,14,0,27,23,31,0,0,-13,10,7,19,10,15,11,20,10,25,0,18,0,0,0,0,-13,-12,-5,-4,-16,0,-7,9,13,8,0,0,0,0,0,0,0,0,0,32,34,27,0,0,0,0,0,0,0,0,0,0,0,0,0,0,0,40,40,40,40,39,32,32,39,39,39,43,47,51,51,51,51,51,51,51,51,51,52,52,59,53,60,53,20,91,60,58,0,91,60,60,58,60,50,64,85,93,59,72,54,60,60,60,60,60,46,60,60,60,60,60,60,101,0,101,0,62,61,57,57,57,15,56,54,86,24,45,31,44,0,0,0,0,0,0,0,0,0,0,0,0,0,0,0]} 1. e4 {[%emt 0:00:15]} e5 {[%emt 0:00:05]} 2. Nf3 {[%emt 0:00:11]} Nc6 {[%emt 0:00:05]} 3. Bb5 {[%emt 0:00:16]} a6 {[%emt 0:00:04]} 4. Ba4 {[%emt 0:00:08]} Nf6 {[%emt 0:00:02]} 5. O-O {[%emt 0:00:12]} Nxe4 {[%emt 0:00:03]} 6. d4 {[%emt 0:00:18]} b5 {[%emt 0:00:02]} 7. Bb3 {[%emt 0:00:09]} d5 {[%emt 0:00:03]} 8. dxe5 {[%emt 0:00:11]} Be6 {[%emt 0:00:03]} 9. Be3 {[%emt 0:00:09]} Be7 {[%emt 0:00:52]} 10. c3 {[%emt 0:00:05]} O-O {[%emt 0:00:21]} 11. Qe2 {[%emt 0:00:13]} f6 {[%emt 0:12:10]} 12. exf6 {[%emt 0:01:24]} Bxf6 {[%emt 0:03:11]} 13. Rd1 {[%emt 0:24:42] White is slightly better.} Na5 {[%emt 0:12:47]} 14. Bc2 {[%emt 0:00:59]} Qe7 {[%emt 0:02:03]} 15. Nbd2 {[%emt 0:01:09]} Nxd2 {[%emt 0:02:40]} 16. Nxd2 {[%emt 0:01:00][%cal Oe3c5,Bf3d2,Bd2b3,Bb3c5][%mdl 32] Threatening Bc5!} Rfe8 {[%emt 0:01:06]} 17. Re1 {[%emt 0:04:03]} Qf7 {[%emt 0:20:01]} 18. Qf3 {[%emt 0:15:58]} Be5 {[%emt 0:14:03]} 19. Qd1 {[%emt 0:09:39]} (19. Bd4 {seems wilder.} Bd6 20. b4 Nc4 21. Qxf7+ Bxf7 22. Nxc4 dxc4 23. Be4) 19... Bf6 {[%emt 0:28:59]} 20. Nb3 {[%emt 0:27:03]} Nc4 {[%emt 0:05:04]} 21. Nc5 {[%emt 0:00:45]} g6 {[%emt 0:05:06]} 22. Rb1 {[%emt 0:02:01]} Nxe3 {[%emt 0:02:30]} 23. Rxe3 {[%emt 0:00:17]} c6 {[%emt 0:02:31]} 24. a4 {[%emt 0:12:08]} Bg5 {[%emt 0:03:44] This pair of bishops is nice.} 25. Re1 {[%emt 0:02:16]} Bf5 {[%emt 0:02:53]} 26. Bxf5 {[%emt 0:02:18]} Qxf5 {[%emt 0:00:24]} 27. Ra1 {[%emt 0:01:18]} Be7 {[%emt 0:05:21]} 28. Nb3 {[%emt 0:00:44]} b4 {[%emt 0:05:11]} 29. Nd4 {[%emt 0:03:15][%csl LRc6,LRf5]} Qd7 {[%emt 0:00:22]} 30. Qd3 {[%emt 0:01:02]} bxc3 {[%emt 0:00:45]} 31. bxc3 {[%emt 0:00:08]} Bf6 {[%emt 0:00:26]} 32. Rxe8+ {[%emt 0:02:44]} Qxe8 {[%emt 0:00:04]} 33. g3 {[%emt 0:01:14]} c5 {[%emt 0:01:05]} 34. Nb3 {[%emt 0:04:10]} Qc6 {[%emt 0:00:34] [#] And now ...c4 would win.} 35. Qf3 {[%emt 0:01:28]} Rf8 {[%emt 0:00:52]} 36. Qe3 {[%emt 0:04:48]} Re8 {[%emt 0:02:21]} 37. Qxc5 {[%emt 0:03:14]} Qxc5 {[%emt 0:00:02]} 38. Nxc5 {[%emt 0:00:05]} Bxc3 $11 {[%emt 0:00:02][%mdl 4096] Endgame. KRB-KRN} 39. Rd1 {[%emt 0:00:08]} d4 {[%emt 0:00:12]} 40. Nxa6 {[%emt 0:00:54]} Ra8 {[%emt 0:00:28]} 41. Nc5 {[%emt 0:00:02]} Ra5 {[%emt 0:00:06]} 42. Nd3 {[%emt 0:00:09]} Rxa4 {[%emt 0:00:08]} 43. Rb1 {[%emt 0:00:01]} Ra2 {[%emt 0:02:36]} 44. Rb8+ {[%emt 0:00:46]} Kg7 {[%emt 0:00:01]} 45. Rb7+ {[%emt 0:00:07]} Kg8 {[%emt 0:00:31]} 46. Kg2 {[%emt 0:01:33]} Rd2 {[%emt 0:00:28]} 47. Nc5 {[%emt 0:01:15]} Rd1 {[%emt 0:00:54]} 48. Ne4 {[%emt 0:01:36]} h6 {[%emt 0:00:19]} 49. Kf3 {[%emt 0:00:35]} Kf8 {[%emt 0:00:46]} 50. h4 {[%emt 0:01:21]} Ba5 {[%emt 0:00:31]} 51. Rb5 {[%emt 0:00:49]} Ra1 {[%emt 0:00:29]} 52. Nc5 {[%emt 0:01:36]} Ra3+ {[%emt 0:00:31]} 53. Ke4 {[%emt 0:01:14]} Be1 {[%emt 0:00:16]} 54. Nd3 {[%emt 0:00:06]} (54. Kxd4 Bxf2+ 55. Ke5 Bxg3+ (55... Rxg3 56. Rb8+ Ke7 57. Rb7+ Kd8 58. Ne4 $11) 56. Kf6 Bxh4+ 57. Kxg6 h5 $11) 54... Ra2 {[%emt 0:00:44]} 55. Kf3 {[%emt 0:01:12]} Ra3 {[%emt 0:00:27]} 56. Ke4 {[%emt 0:00:12]} Ra2 $1 {[%emt 0:00:26]} 57. Rb1 {[%emt 0:00:08]} Bc3 {[%emt 0:00:09]} (57... Bxf2 $2 {is the wrong capture.} 58. Rf1 Re2+ 59. Kd5 $18 (59. Kf3 Re3+ 60. Kxf2 Kf7 $18)) 58. Rb6 {[%emt 0:00:53]} Kg7 {[%emt 0:00:14]} 59. g4 {[%emt 0:00:41]} Be1 {[%emt 0:01:13]} 60. Rb7+ {[%emt 0:00:38]} Kg8 {[%emt 0:00:22]} 61. Kf3 {[%emt 0:00:31]} Ra3 {[%emt 0:00:36]} 62. Ke2 {[%emt 0:00:05]} Ba5 {[%emt 0:00:33]} 63. Rd7 {[%emt 0:00:30]} Ra2+ {[%emt 0:00:30]} 64. Kf3 {[%emt 0:00:05][%cal Od7a7]} Bc3 {[%emt 0:00:21]} 65. Rb7 {[%emt 0:01:52]} Ra3 {[%emt 0:00:32]} 66. Ke4 {[%emt 0:00:27]} Ra2 {[%emt 0:00:12]} 67. Rb8+ {[%emt 0:01:30]} Kh7 {[%emt 0:00:22]} 68. Rb6 {[%emt 0:00:28]} ({Much worse is} 68. Rb7+ Kg8 $11) 68... Be1 {[%emt 0:00:56]} 69. Rb7+ {[%emt 0:00:31]} Kg8 {[%emt 0:00:11]} 70. Kf3 {[%emt 0:00:04]} (70. Nxe1 $16 Re2+ 71. Kxd4 Rxe1 72. f3) 70... Bc3 {[%emt 0:00:19]} (70... Ra3 $1 $11) 71. Rb6 {[%emt 0:00:04]} Kh7 {[%emt 0:00:06]} 72. Re6 {[%emt 0:00:05]} Ra3 {[%emt 0:01:11]} 73. Kg2 {[%emt 0:00:13]} Bd2 {[%emt 0:00:50]} 74. Ne5 {[%emt 0:00:19]} g5 {[%emt 0:00:28]} 75. h5 {[%emt 0:02:16]} ({Better is} 75. Nc4 $16 Rd3 76. Ne5) 75... Bf4 {[%emt 0:00:31]} 76. Ng6 {[%emt 0:00:04]} Bc1 $1 {[%emt 0:00:29]} 77. Ne7 {[%emt 0:00:05] Nf5 would now be deadly.} d3 {[%emt 0:00:33] The position is equal.} 78. Nf5 {[%emt 0:00:15]} Bf4 {[%emt 0:00:25]} 79. Rxh6+ {[%emt 0:01:07]} Kg8 {[%emt 0:00:03] [#] ...d2 is the strong threat.} 80. Rg6+ $1 {[%emt 0:00:03]} Kh8 {[%emt 0:00:19] Threatens to win with ...d2.} 81. Rh6+ {[%emt 0:01:03]} Kg8 {[%emt 0:00:04] Hoping for ...d2.} 82. Rg6+ $1 {[%emt 0:00:47]} Kh8 {[%emt 0:00:14] Strongly threatening ...d2.} 83. Rh6+ {[%emt 0:01:03]} Kg8 {[%emt 0:00:03] aiming for ...d2.} 84. Rg6+ $1 {[%emt 0:00:27] Weighted Error Value: White=0.08 (flawless) /Black=0.07 (flawless) .  Mistake:       	White=2     	Black=2      Inaccurate:     	White=8     	Black=6      OK:         	White=32    	Black=31     Best:        	---       	Black=2      Strong:       	White=3     	Black=2} 1/2-1/2